bitfinex/quotes_ETHUSD_20251017
["timestamp","ask_amount","ask_price","bid_price","bid_amount"]
[1760682194097,0.77346798,3889.6,3888.8,0.97676534]
[1760682194296,0.40336185,3889.4,3888.9,2.57142122]
[1760682194507,0.40336185,3889.4,3889.3,2.57115676]
[1760682195094,0.40336185,3889.4,3888.9,0.35481866]
[1760682195327,1.962,3889.3,3889.0,2.5713551]
[1760682195531,1.962,3889.3,3888.8,0.97676534]
[1760682196030,0.03214028,3889.2,3888.8,0.97676534]
[1760682196234,0.214,3888.9,3888.8,0.97676534]
[1760682196535,0.69314276,3888.9,3888.8,0.97676534]
[1760682196717,0.93525704,3888.9,3888.8,0.97676534]
[1760682196919,1.33867642,3888.9,3888.8,0.97676534]
[1760682197119,0.40341938,3888.9,3888.8,0.97676534]
[1760682197323,1.82041938,3888.9,3888.8,0.97676534]
[1760682197519,1.82041938,3888.9,3888.8,3.54825268]
[1760682197833,3.04241938,3888.9,3888.8,3.54825268]
[1760682198511,2.639,3888.9,3888.8,3.54825268]
[1760682199424,2.639,3888.9,3888.8,4.42423888]
[1760682199919,2.639,3889.5,3889.4,2.57109065]
[1760682200107,2.639,3889.5,3889.3,0.1531]
[1760682200311,2.639,3889.5,3889.0,0.1531]
[1760682200796,2.639,3889.5,3889.4,2.57109065]
[1760682201131,2.639,3889.5,3888.9,2.57138998]
[1760682201334,0.128,3889.2,3888.9,2.57139782]
[1760682201537,0.03214111,3889.1,3888.8,0.97676534]
[1760682201724,0.2248,3888.9,3888.8,0.97676534]
[1760682201921,0.70314749,3888.9,3888.8,0.97676534]
[1760682202323,3.34214749,3888.9,3888.8,0.97676534]
[1760682202634,3.67636224,3888.9,3888.8,0.97676534]
[1760682203400,18.342369,3888.9,3888.8,0.97676534]
[1760682203638,17.23015822,3888.9,3888.8,0.97676534]
[1760682204017,11.21293222,3888.9,3888.8,0.97676534]
[1760682204237,14.41795344,3888.9,3888.8,0.64100224]
[1760682204443,0.6375533,3888.3,3886.5,0.0981]
[1760682204734,1.728,3888.5,3886.6,2.5729087]
[1760682204735,2.36584441,3887.9,3886.6,2.5729087]
[1760682204965,2.75118841,3887.7,3886.6,2.5729087]
[1760682205142,2.641,3887.6,3886.4,0.2512]
[1760682205303,2.67315351,3887.6,3886.4,0.2512]
[1760682205704,0.05,3887.3,3886.1,1.82679063]
[1760682205937,1.7645,3887.5,3886.1,1.82679063]
[1760682205938,0.00437679,3887.0,3886.1,1.82679063]
[1760682206142,2.652,3886.9,3886.4,2.57307419]
[1760682206326,2.652,3886.9,3886.1,1.92489063]
[1760682206530,2.652,3886.8,3886.1,1.92489063]
[1760682206726,2.652,3886.7,3886.6,2.57294293]
[1760682207524,2.652,3886.7,3886.1,1.92489063]
[1760682207720,0.03216178,3886.6,3886.2,2.57320776]
[1760682208025,0.03216178,3886.6,3886.1,1.92489063]
[1760682208208,2.652,3886.7,3886.6,2.57294293]
[1760682209027,2.652,3886.7,3886.1,1.92489063]
[1760682209339,2.652,3886.7,3886.6,2.57294293]
[1760682209643,1.73211207,3887.7,3886.1,2.11737969]
[1760682209644,2.652,3886.9,3886.1,2.11737969]
[1760682209846,2.652,3886.9,3886.1,1.82679063]
[1760682209847,2.68416013,3886.8,3886.1,1.82679063]
[1760682210208,0.03216095,3886.7,3886.1,1.82679063]
[1760682210406,0.4745,3886.6,3886.1,1.82679063]
[1760682210939,2.652,3886.8,3886.1,1.82679063]
[1760682211141,0.03216095,3886.7,3886.1,1.92489063]
[1760682211444,0.00424441,3887.6,3886.3,2.57314154]
[1760682211629,1.728,3887.4,3886.1,1.92489063]
[1760682211830,0.03637393,3887.3,3886.8,2.57280275]
[1760682212030,0.03637393,3887.3,3886.1,2.05289063]
[1760682212031,0.9203818,3887.2,3886.4,2.57307422]
[1760682212330,0.9203818,3887.2,3886.7,2.57287529]
[1760682212531,0.03215764,3887.1,3886.1,1.92489063]
[1760682212707,0.128,3886.5,3886.4,2.57306712]
[1760682213043,0.128,3886.5,3886.1,1.82679063]
[1760682213044,2.779,3886.5,3886.1,1.92489063]
[1760682213244,2.779,3886.5,3886.4,2.57307533]
[1760682214040,2.651,3886.5,3886.4,2.57307533]
[1760682214645,2.651,3886.5,3886.4,2.82427533]
[1760682214949,4.2061,3886.5,3886.1,1.82679063]
[1760682215148,4.2061,3886.5,3883.3,1.89221763]
[1760682215149,0.6336,3886.1,3885.2,0.65967621]
[1760682215316,0.86322712,3885.3,3885.2,0.65967621]
[1760682215642,1.51962712,3885.3,3885.2,0.65967621]
[1760682215849,6.388,3885.3,3885.2,0.65967621]
[1760682216009,6.388,3885.3,3885.2,0.12368928]
[1760682216010,31.99798,3885.3,3885.2,0.12368928]
[1760682216235,16.378572,3885.3,3885.2,0.12368928]
[1760682216436,15.15184638,3885.3,3885.2,0.07368928]
[1760682216642,15.15184638,3885.3,3883.3,1.89221763]
[1760682216643,0.63858616,3884.5,3883.3,1.89221763]
[1760682216864,0.2248,3883.4,3883.3,1.89221763]
[1760682217062,16.62225561,3884.4,3883.3,1.89221763]
[1760682217063,2.694,3883.5,3883.3,1.89221763]
[1760682217250,2.694,3884.3,3883.3,1.89221763]
[1760682217452,2.694,3884.3,3883.4,0.4292]
[1760682217643,0.6336,3885.4,3883.4,0.4292]
[1760682217644,0.2248,3885.7,3884.2,0.1531]
[1760682217843,1.745,3885.7,3885.1,0.001]
[1760682218578,0.03217006,3885.6,3885.3,2.57379406]
[1760682218750,0.03217006,3885.6,3885.4,2.57370823]
[1760682218950,1.745,3885.7,3885.6,2.5736051]
[1760682219254,1.745,3885.7,3885.6,4.3016051]
[1760682219458,2.695,3886.2,3885.6,2.57354769]
[1760682219644,0.27271634,3886.1,3885.1,0.001]
[1760682219851,0.03216675,3886.0,3885.9,2.57338966]
[1760682220062,0.30488226,3886.1,3885.8,2.57345307]
[1760682220253,0.30488226,3886.1,3885.9,2.57340213]
[1760682220478,0.27271634,3886.1,3885.9,2.57340213]
[1760682220776,2.695,3886.2,3885.2,0.4292]
[1760682220777,2.695,3886.2,3886.1,2.53293407]
[1760682221147,0.684,3887.0,3886.1,0.1668]
[1760682221148,0.0321593,3886.9,3886.1,0.1668]
[1760682221347,2.72616013,3886.8,3886.1,0.1668]
[1760682221547,2.72616013,3886.8,3885.7,0.1668]
[1760682221770,2.72616013,3886.8,3885.9,2.57340641]
[1760682221771,0.38138156,3886.7,3885.9,2.57340641]
[1760682221974,0.38138156,3886.7,3885.7,0.1668]
[1760682221975,0.03216178,3886.6,3886.5,2.57300913]
[1760682222179,0.38138156,3886.7,3885.7,1.8948]
[1760682222180,0.03216095,3886.7,3885.9,2.57340641]
[1760682222384,0.0040856,3887.8,3887.0,2.57265316]
[1760682222675,2.9198,3887.3,3886.9,2.57273783]
[1760682222876,0.33234136,3887.2,3886.9,2.57273783]
[1760682223269,0.33234136,3887.2,3887.0,2.57267813]
[1760682223473,0.36449818,3887.2,3886.8,2.57280931]
[1760682223656,0.36449818,3887.2,3886.8,2.57275892]
[1760682224059,0.36449818,3887.2,3886.9,2.57270964]
[1760682224284,0.33234136,3887.2,3886.9,2.57270964]
[1760682224478,0.03215764,3887.1,3886.2,2.57320776]
[1760682224680,0.33234136,3887.2,3886.2,2.57320776]
[1760682224852,0.33234136,3887.2,3887.1,2.57261197]
[1760682225049,0.33234136,3887.2,3885.1,0.6346]
[1760682225050,0.40786156,3887.1,3885.3,0.1668]
[1760682225255,0.40786156,3887.1,3885.1,0.001]
[1760682225256,0.2248,3885.4,3885.1,0.001]
[1760682225449,0.2248,3885.4,3883.3,1.89221763]
[1760682225450,1.728,3885.1,3883.3,1.89221763]
[1760682225764,2.73717254,3885.3,3884.1,0.1668]
[1760682225765,0.4582,3885.3,3884.1,0.1668]
[1760682225959,0.4582,3885.3,3884.6,2.57425095]
[1760682225960,2.707,3885.2,3884.6,2.57425095]
[1760682226174,2.707,3885.2,3884.1,0.1668]
[1760682226175,0.0321742,3885.1,3884.1,0.1668]
[1760682226376,0.0321742,3885.1,3884.7,2.57419537]
[1760682226552,0.0321742,3885.1,3884.1,2.741388]
[1760682226762,0.40382791,3885.2,3885.0,2.57400257]
[1760682227068,2.706,3885.9,3884.9,0.0981]
[1760682227268,0.40377556,3885.7,3885.0,2.57399094]
[1760682227661,0.40377556,3885.7,3884.9,0.0981]
[1760682227882,0.03217006,3885.6,3885.5,2.57363824]
[1760682228086,0.0321684,3885.8,3885.6,2.57357423]
[1760682228389,0.0321684,3885.8,3885.5,2.57367012]
[1760682229387,2.706,3885.9,3885.8,2.57347264]
[1760682230766,2.706,3885.9,3885.8,2.53716673]
[1760682231369,0.4582,3886.8,3885.2,0.4638]
[1760682231587,2.704,3886.4,3885.2,0.4638]
[1760682231771,0.62851428,3887.0,3886.3,2.57312152]
[1760682231967,2.702,3886.9,3886.4,2.57307143]
[1760682232196,2.702,3886.9,3886.1,0.1531]
[1760682232365,0.03216013,3886.8,3886.3,2.57314154]
[1760682232568,0.03216013,3886.8,3886.6,2.57293375]
[1760682232768,0.03216013,3886.8,3886.7,2.57287673]
[1760682233088,0.03216013,3886.8,3886.5,2.57294303]
[1760682233264,0.03216013,3886.8,3886.7,2.57287673]
[1760682233599,2.702,3886.9,3886.8,2.57281053]
[1760682234164,3.10561013,3886.9,3886.3,2.57308665]
[1760682234365,0.40361013,3886.9,3886.1,0.1531]
[1760682235182,0.128,3886.7,3886.6,2.57294293]
[1760682235798,0.40361013,3886.9,3886.8,2.57281053]
[1760682236673,0.40561013,3886.9,3886.8,2.57281053]
[1760682238898,0.002,3886.9,3886.8,2.57281053]
[1760682240487,0.002,3886.9,3886.8,3.03661053]
[1760682240688,0.002,3886.9,3886.1,0.1531]
[1760682241000,0.002,3886.9,3886.7,2.5728325]
[1760682241001,0.03267532,3886.8,3886.7,2.5728325]
[1760682242871,0.03267532,3886.8,3886.7,3.03626618]
[1760682243082,0.03267532,3886.8,3886.7,3.58405674]
[1760682243576,0.03267532,3886.8,3886.7,2.5728325]
[1760682245020,0.03267532,3886.8,3886.7,2.57287673]
[1760682245178,0.03267532,3886.8,3886.7,3.02317673]
[1760682245792,0.03267532,3886.8,3886.7,3.15117673]
[1760682246557,0.002,3886.9,3886.8,2.57281053]
[1760682246706,0.002,3886.9,3886.8,3.02311053]
[1760682247705,0.002,3886.9,3886.8,5.71111053]
[1760682248053,0.002,3886.9,3886.8,2.57281053]
[1760682248543,0.002,3886.9,3886.8,3.02311053]
[1760682250455,0.002,3886.9,3886.8,5.72424255]
[1760682250657,0.002,3886.9,3886.8,5.71111053]
[1760682251032,0.002,3886.9,3886.8,5.26081053]
[1760682251418,0.002,3886.9,3886.7,2.70087673]
[1760682251419,0.002,3886.9,3886.7,0.128]
[1760682251672,0.002,3886.9,3886.7,2.57287234]
[1760682251876,0.128,3886.8,3886.7,2.57287673]
[1760682252851,0.002,3886.9,3886.8,2.57281053]
[1760682253830,0.2326,3886.9,3886.8,2.57281053]
[1760682254156,0.002,3886.9,3886.8,2.57281053]
[1760682258727,0.002,3886.9,3886.8,3.02311053]
[1760682259164,0.002,3886.9,3886.8,2.57281053]
[1760682260568,0.002,3886.9,3886.8,3.03624255]
[1760682260878,0.002,3886.9,3886.8,6.22881786]
[1760682261080,0.002,3886.9,3886.8,6.21568584]
[1760682261947,0.002,3886.9,3886.8,5.76538584]
[1760682262273,0.002,3886.9,3886.8,5.24981053]
[1760682263178,0.002,3886.9,3886.8,5.68131053]
[1760682263775,0.002,3886.9,3886.8,5.80931053]
[1760682264056,0.002,3886.9,3886.8,5.37781053]
[1760682265197,0.002,3886.9,3886.8,5.80931053]
[1760682265371,0.002,3886.9,3886.8,6.64753584]
[1760682268380,0.002,3886.9,3886.8,6.21603584]
[1760682268790,0.002,3886.9,3886.8,6.64753584]
[1760682269903,0.002,3886.9,3886.8,6.21603584]
[1760682270276,0.002,3886.9,3886.8,6.64753584]
[1760682271183,0.002,3886.9,3886.8,6.21603584]
[1760682271562,0.002,3886.9,3886.8,3.53903584]
[1760682271895,0.002,3886.9,3886.8,6.21003584]
[1760682272073,0.002,3886.9,3886.8,6.64153584]
[1760682272278,0.002,3886.9,3886.8,6.63953584]
[1760682273064,0.002,3886.9,3886.8,8.23953584]
[1760682273266,0.002,3887.7,3887.6,2.57228109]
[1760682273891,0.4485,3887.7,3887.6,2.57228109]
[1760682276662,0.002,3887.7,3887.6,2.57228109]
[1760682278394,0.002,3887.7,3887.6,3.1298962]
[1760682279400,0.002,3887.7,3887.6,3.5613962]
[1760682279580,0.002,3887.7,3887.6,6.2253962]
[1760682280402,0.002,3887.7,3887.6,6.8589962]
[1760682280768,0.002,3887.7,3887.6,2.57228109]
[1760682280967,0.458,3887.7,3887.6,2.57228109]
[1760682282600,0.002,3887.7,3887.6,2.57228109]
[1760682283170,0.002,3887.7,3887.6,2.70028109]
[1760682285214,0.458,3887.7,3887.6,2.70028109]
[1760682286001,0.002,3887.7,3887.6,2.70028109]
[1760682287110,0.458,3887.7,3887.6,2.70028109]
[1760682287292,0.002,3887.7,3887.6,2.70028109]
[1760682288213,0.458,3887.7,3887.6,2.70028109]
[1760682288387,0.458,3887.7,3887.5,2.57229125]
[1760682288712,0.584,3887.6,3887.5,2.57234726]
[1760682290112,0.128,3887.6,3887.5,2.57234726]
[1760682290313,0.456,3887.6,3887.3,2.70142597]
[1760682290637,0.456,3887.6,3887.4,2.57241343]
[1760682290638,0.456,3887.5,3887.4,2.57241343]
[1760682291737,0.456,3887.5,3887.3,0.001]
[1760682291738,0.48815434,3887.5,3887.3,0.001]
[1760682291908,0.456,3887.4,3887.3,0.001]
[1760682292900,0.456,3887.4,3887.3,2.57347961]
[1760682293109,3.113,3887.4,3887.3,2.57347961]
[1760682293920,3.4245,3887.4,3887.3,0.001]
[1760682297451,0.6993294,3887.4,3887.3,0.001]
[1760682297628,0.456,3887.4,3887.3,0.001]
[1760682298152,0.48815516,3887.4,3887.3,0.001]
[1760682298444,0.456,3887.4,3887.3,0.001]
[1760682298807,3.112,3887.4,3887.3,0.001]
[1760682300936,2.655,3887.4,3887.3,0.001]
[1760682301111,2.655,3887.4,3887.3,2.57347961]
[1760682301510,0.458,3887.7,3887.4,2.57236232]
[1760682301746,2.782,3887.6,3887.5,2.57234726]
[1760682302037,3.238,3887.6,3887.3,0.001]
[1760682302212,0.81215434,3887.5,3887.3,0.001]
[1760682302406,2.782,3887.6,3887.4,2.57241343]
[1760682302619,2.782,3887.6,3887.5,2.57234726]
[1760682303118,0.128,3887.6,3887.5,2.57234726]
[1760682303308,2.656,3887.7,3887.6,2.57228109]
[1760682303812,2.656,3887.7,3887.6,3.00598109]
[1760682304008,2.656,3887.7,3887.6,3.57671393]
[1760682304236,2.656,3887.7,3887.6,3.70471393]
[1760682304422,2.656,3887.7,3887.3,0.001]
[1760682304423,0.466,3887.7,3887.3,0.001]
[1760682304633,0.128,3887.5,3887.3,0.001]
[1760682304827,0.03215516,3887.4,3887.3,0.001]
[1760682305025,0.49615516,3887.4,3887.3,0.001]
[1760682305242,0.03215516,3887.4,3887.3,0.001]
[1760682305542,0.128,3887.4,3887.3,0.001]
[1760682305748,0.128,3887.4,3887.3,2.57347961]
[1760682306339,0.128,3887.4,3887.3,0.001]
[1760682307333,0.128,3887.4,3887.3,2.57347961]
[1760682307532,0.128,3887.4,3887.3,0.001]
[1760682308244,0.128,3887.4,3887.3,2.57347961]
[1760682309765,0.128,3887.4,3887.3,0.001]
[1760682309965,0.868,3887.4,3887.3,0.001]
[1760682312545,18.861048,3887.4,3887.3,0.001]
[1760682312745,15.702707,3887.4,3887.3,0.001]
[1760682313378,30.09877059,3887.4,3887.3,0.001]
[1760682313670,3.2107079,3887.0,3886.9,0.001]
[1760682313966,31.37363837,3887.0,3886.9,0.001]
[1760682314169,31.8029799,3887.0,3886.9,0.001]
[1760682314373,2.57745213,3886.6,3886.5,0.001]
[1760682314682,45.12961122,3886.6,3886.5,0.001]
[1760682314878,48.0641057,3886.6,3886.5,0.001]
[1760682315064,29.48815577,3886.6,3886.5,0.001]
[1760682315373,28.85455577,3886.6,3886.5,0.001]
[1760682315597,4.22815626,3886.6,3886.5,0.001]
[1760682315871,2.65,3886.6,3886.5,0.001]
[1760682316248,3.14866178,3886.6,3886.5,0.001]
[1760682316557,2.65,3886.6,3886.5,0.001]
[1760682316759,2.65,3886.6,3886.5,2.57400913]
[1760682316953,2.65,3886.6,3886.5,0.001]
[1760682317275,2.649,3886.6,3886.5,3.00765568]
[1760682317646,0.7437,3887.4,3886.5,3.56573172]
[1760682317977,0.7437,3887.4,3887.2,2.57248581]
[1760682317978,1.269,3887.3,3887.2,2.57248581]
[1760682318173,1.269,3887.3,3887.0,2.5726649]
[1760682318174,1.269,3887.3,3886.5,0.55907604]
[1760682318370,1.269,3887.3,3886.5,0.001]
[1760682318571,0.03215682,3887.2,3886.5,0.001]
[1760682318770,1.269,3887.3,3887.2,2.57254579]
[1760682320673,1.269,3887.3,3887.1,2.5726072]
[1760682320990,1.269,3887.3,3886.9,2.57268149]
[1760682321168,1.269,3887.3,3886.5,0.4347]
[1760682321169,0.03215682,3887.2,3886.5,0.001]
[1760682321473,0.03215682,3887.2,3886.5,2.57399338]
[1760682322082,0.03215682,3887.2,3886.7,2.57281429]
[1760682322283,0.03215682,3887.2,3886.5,2.57399338]
[1760682322593,1.269,3887.3,3887.1,2.57261197]
[1760682322763,0.7437,3887.4,3887.2,2.57254579]
[1760682323101,1.077,3887.3,3886.7,0.4605]
[1760682323250,1.077,3887.3,3887.2,2.57254579]
[1760682323652,0.7437,3887.4,3887.3,2.57247961]
[1760682323852,0.7437,3887.4,3887.3,3.03297961]
[1760682324970,0.7437,3887.4,3886.5,0.25839934]
[1760682325301,0.7437,3887.4,3886.6,0.4605]
[1760682325473,2.648,3887.3,3887.2,2.57248061]
[1760682325984,2.648,3887.3,3887.2,3.03298061]
[1760682326353,2.648,3887.3,3887.2,2.57248061]
[1760682329505,0.7457,3887.4,3887.3,2.57247961]
[1760682329825,3.3967,3887.4,3887.3,2.57247961]
[1760682330522,3.3967,3887.4,3887.0,2.57266654]
[1760682330826,3.3967,3887.4,3887.3,2.57247961]
[1760682332329,3.3967,3887.4,3887.3,3.03297961]
[1760682332698,3.3967,3887.4,3887.3,2.57247961]
[1760682332893,3.7597,3887.4,3887.1,2.57254642]
[1760682333093,3.7597,3887.4,3886.5,0.001]
[1760682333094,0.47685599,3887.3,3886.5,0.001]
[1760682333296,0.47685599,3887.3,3887.1,2.57257676]
[1760682333501,0.03215599,3887.3,3887.2,2.57254579]
[1760682333823,3.3967,3887.4,3887.2,2.57254197]
[1760682334023,3.3967,3887.4,3887.3,2.57247961]
[1760682335242,3.5247,3887.4,3887.3,2.57247961]
[1760682335520,3.3967,3887.4,3887.3,2.57247961]
[1760682336490,3.3967,3887.4,3887.0,0.128]
[1760682336720,0.03215599,3887.3,3886.9,2.57269179]
[1760682337019,0.128,3887.1,3886.5,0.129]
[1760682337241,0.128,3887.1,3886.5,0.001]
[1760682337242,0.2293,3886.6,3886.5,0.001]
[1760682337439,2.8803,3886.6,3886.5,0.001]
[1760682337650,3.78947831,3886.6,3886.5,0.001]
[1760682340442,0.2293,3887.0,3886.7,2.57287673]
[1760682340658,1.55907,3887.4,3886.5,0.001]
[1760682340659,2.65,3886.9,3886.5,0.001]
[1760682340953,0.7457,3887.4,3887.2,2.57251508]
[1760682341157,2.65,3887.3,3887.2,2.57251508]
[1760682341331,2.68215599,3887.3,3886.5,0.001]
[1760682341534,0.3429856,3887.2,3886.8,2.57274777]
[1760682341728,0.3429856,3887.2,3886.5,0.001]
[1760682341729,2.68215599,3887.3,3886.5,0.001]
[1760682341935,2.68215599,3887.3,3887.0,2.5726153]
[1760682342141,0.4447,3887.2,3886.5,0.001]
[1760682342641,0.26145764,3887.1,3886.5,0.001]
[1760682343158,0.4447,3887.0,3886.5,0.001]
[1760682343355,2.6831593,3886.9,3886.5,0.001]
[1760682343657,0.33614302,3886.8,3886.5,0.001]
[1760682343855,0.33614302,3886.8,3886.6,2.5728974]
[1760682343856,2.651,3886.7,3886.6,2.5728974]
[1760682344255,2.651,3886.7,3886.5,0.001]
[1760682344457,0.47686178,3886.6,3886.5,0.001]
[1760682348455,18.41887153,3886.6,3886.5,0.001]
[1760682348623,20.96912319,3886.6,3886.5,0.001]
[1760682348829,21.74780396,3886.6,3886.5,0.001]
[1760682349443,29.49280596,3886.6,3886.5,0.001]
[1760682349623,28.24352996,3886.6,3886.5,0.001]
[1760682350442,30.07756596,3886.6,3886.5,0.001]
[1760682350944,16.94905303,3886.6,3886.5,0.001]
[1760682351340,16.31545303,3886.6,3886.5,0.001]
[1760682351540,6.80877546,3886.6,3886.5,0.001]
[1760682351755,9.45677546,3886.6,3886.5,0.001]
[1760682352564,15.45880746,3886.6,3886.5,0.001]
[1760682353557,17.39426246,3886.6,3886.5,0.001]
[1760682353757,10.52477546,3886.6,3886.5,0.001]
[1760682354062,10.52477546,3886.6,3886.5,0.4521]
[1760682354063,2.647,3886.6,3886.5,0.4521]
[1760682354230,2.647,3886.6,3886.5,0.001]
[1760682355662,2.67916178,3886.6,3886.5,0.001]
[1760682356665,2.647,3886.6,3886.5,0.001]
[1760682357963,4.375,3886.6,3886.5,0.001]
[1760682358150,4.86114593,3886.6,3886.5,0.001]
[1760682358354,4.89330771,3886.6,3886.5,0.001]
[1760682358865,4.86114593,3886.6,3886.5,0.001]
[1760682359236,2.21414593,3886.6,3886.5,0.001]
[1760682359566,4.373,3886.6,3886.5,0.001]
[1760682359964,4.40516178,3886.6,3886.5,0.001]
[1760682360653,4.86386505,3886.6,3886.5,0.001]
[1760682361037,10.64230805,3886.6,3886.5,0.001]
[1760682361238,11.69696707,3886.6,3886.5,0.001]
[1760682361879,19.18093707,3886.6,3886.5,0.001]
[1760682362043,22.38748,3886.6,3886.5,0.001]
[1760682362237,13.3692538,3886.6,3886.5,0.001]
[1760682362437,7.9135308,3886.6,3886.5,0.001]
[1760682362663,7.91796055,3886.6,3886.5,0.001]
[1760682362837,7.4014988,3886.6,3886.5,0.001]
[1760682363047,10.04990207,3886.6,3886.5,0.001]
[1760682363251,9.71890207,3886.6,3886.5,0.001]
[1760682363461,9.71892855,3886.6,3886.5,0.001]
[1760682363661,12.92547148,3886.6,3886.5,0.001]
[1760682363886,34.55092448,3886.6,3886.5,0.001]
[1760682364787,32.54353848,3886.6,3886.5,0.001]
[1760682364946,31.31577548,3886.6,3886.5,0.001]
[1760682365274,21.84853248,3886.6,3886.5,0.001]
[1760682365456,20.63244748,3886.6,3886.5,0.001]
[1760682365879,15.93925048,3886.6,3886.5,0.001]
[1760682366047,12.11815655,3886.6,3886.5,0.001]
[1760682366246,11.48455655,3886.6,3886.5,0.001]
[1760682366548,5.38124055,3886.6,3886.5,0.001]
[1760682366770,9.95526268,3886.6,3886.5,0.001]
[1760682366971,28.55299268,3886.6,3886.5,0.001]
[1760682367856,33.01099468,3886.6,3886.5,0.001]
[1760682368055,31.72849468,3886.6,3886.5,0.001]
[1760682368485,26.34729368,3886.6,3886.5,0.001]
[1760682368683,28.84744994,3886.6,3886.5,0.001]
[1760682368883,3.21136993,3886.2,3886.1,0.001]
[1760682369063,47.39268068,3886.2,3886.1,0.001]
[1760682369266,47.25366259,3886.2,3886.1,0.001]
[1760682369861,30.51856959,3886.2,3886.1,0.001]
[1760682370061,46.09182285,3886.2,3886.1,0.001]
[1760682370286,41.36752285,3886.2,3886.1,0.001]
[1760682370659,35.26240385,3886.2,3886.1,0.001]
[1760682370861,14.15632996,3886.2,3886.1,0.001]
[1760682371056,12.83514796,3886.2,3886.1,0.001]
[1760682371374,10.79920593,3886.2,3886.1,0.001]
[1760682371678,11.57348439,3886.2,3886.1,0.001]
[1760682372083,35.06792839,3886.2,3886.1,0.001]
[1760682372300,30.07743739,3886.2,3886.1,0.001]
[1760682373193,0.00472113,3885.4,3884.7,0.4483]
[1760682373491,0.00472113,3885.4,3884.4,0.0981]
[1760682373492,1.728,3885.2,3884.4,0.0981]
[1760682373694,0.03697482,3885.1,3884.4,0.0981]
[1760682373862,1.728,3884.9,3884.4,0.0981]
[1760682374059,0.03217668,3884.8,3884.4,0.0981]
[1760682374267,0.00498616,3884.5,3884.0,0.0981]
[1760682374464,2.68016616,3884.4,3884.0,0.0981]
[1760682375111,1.7330657,3884.3,3883.5,0.0981]
[1760682375401,0.0050657,3884.1,3883.0,0.1578]
[1760682375604,1.728,3883.9,3883.1,0.4483]
[1760682375805,0.03218497,3883.8,3883.4,0.4483]
[1760682376004,1.728,3883.6,3883.0,0.1578]
[1760682376182,1.728,3883.6,3883.5,0.4483]
[1760682376367,1.728,3883.6,3883.0,0.1578]
[1760682376708,0.12741641,3884.3,3883.4,0.4483]
[1760682377006,0.00493314,3884.8,3884.2,0.1324]
[1760682377305,1.73298616,3884.4,3884.0,0.1324]
[1760682377482,1.728,3884.2,3884.0,0.1324]
[1760682377804,0.43759862,3884.1,3884.0,0.1324]
[1760682378002,0.43759862,3884.1,3883.7,0.4483]
[1760682378208,1.728,3883.9,3883.4,0.1324]
[1760682378393,1.728,3883.7,3883.4,0.5807]
[1760682378585,4.371,3883.6,3883.5,0.4483]
[1760682379697,2.643,3883.6,3883.4,0.1324]
[1760682379884,0.03218745,3883.5,3883.4,0.1324]
[1760682380699,0.03218745,3883.5,3883.4,0.5807]
[1760682380879,2.642,3883.5,3883.4,0.5807]
[1760682381076,10.934964,3883.5,3883.3,1.89221763]
[1760682381275,2.22288828,3883.4,3883.3,1.48831763]
[1760682381478,18.26038719,3883.4,3883.3,1.48831763]
[1760682381700,21.61553755,3883.4,3883.3,1.48831763]
[1760682382022,19.04047447,3883.4,3883.3,1.48831763]
[1760682382185,28.94598225,3883.4,3883.3,1.48831763]
[1760682382389,31.52104533,3883.4,3883.3,1.48831763]
[1760682382586,18.50862534,3883.4,3883.3,1.48831763]
[1760682382890,2.13204427,3883.4,3883.3,1.48831763]
[1760682383086,1.76018828,3883.4,3883.3,1.48831763]
[1760682383320,1.76018828,3883.4,3883.2,0.001]
[1760682383321,1.73327786,3883.3,3883.2,0.001]
[1760682383499,0.40404205,3883.4,3883.2,0.001]
[1760682384021,0.2346,3883.9,3883.2,0.001]
[1760682384022,0.00511873,3883.9,3883.2,0.001]
[1760682385622,2.66830438,3883.2,3881.7,2.57617474]
[1760682385822,0.03219077,3883.1,3881.9,2.57605811]
[1760682385997,0.40931396,3883.4,3883.0,0.1578]
[1760682386812,0.40406263,3883.4,3883.1,0.4463]
[1760682386997,0.40406263,3883.4,3883.2,0.4463]
[1760682387202,0.00517177,3883.7,3883.2,0.4463]
[1760682387419,2.00028895,3883.7,3883.2,0.4463]
[1760682387613,2.00028895,3883.7,3883.0,0.1578]
[1760682387914,0.27228895,3883.7,3883.0,0.1578]
[1760682388229,2.00028895,3883.7,3882.5,2.57565026]
[1760682388520,0.00522481,3883.5,3882.5,0.6041]
[1760682388692,0.03218828,3883.4,3882.5,0.6041]
[1760682388893,0.03218828,3883.4,3882.0,0.1324]
[1760682389121,0.00530438,3883.3,3882.0,0.1324]
[1760682389426,0.00535744,3883.1,3882.0,0.1324]
[1760682389730,0.0321916,3883.0,3882.0,2.70836374]
[1760682389924,0.00546356,3882.8,3881.1,0.2154]
[1760682390224,0.2372,3882.9,3880.6,1.95764463]
[1760682390225,1.73372898,3881.7,3880.6,1.95764463]
[1760682390443,1.52656092,3881.6,3880.6,1.95764463]
[1760682390597,0.00559626,3882.1,3880.6,1.95764463]
[1760682390798,2.67,3882.2,3880.9,2.57670776]
[1760682391041,0.03219906,3882.1,3880.6,1.95764463]
[1760682391253,0.03219906,3882.1,3881.3,2.57643966]
[1760682391528,0.0054105,3882.8,3881.5,2.57632358]
[1760682391836,0.50033112,3882.7,3881.4,0.2428]
[1760682392041,0.03763112,3882.7,3881.4,2.81918498]
[1760682392243,0.00535744,3883.1,3881.5,0.2428]
[1760682392409,0.00535744,3883.1,3882.6,0.1103]
[1760682392598,0.40413951,3883.4,3881.6,2.68655721]
[1760682392599,0.63158908,3883.0,3881.6,2.68655721]
[1760682392797,0.03754904,3883.0,3881.7,2.57619084]
[1760682393004,0.03754904,3883.0,3881.9,2.57604355]
[1760682393302,0.40406491,3883.2,3882.1,2.5759254]